bitfinex-derivatives/quotes_ETHF0:USTF0_20250902
["timestamp","ask_amount","ask_price","bid_price","bid_amount"]
[1756773327239,1.52545412,4310.2,4310.1,0.3964]
[1756773327536,0.402,4309.3,4309.2,0.6354]
[1756773327732,0.3074,4309.6,4309.5,0.3964]
[1756773327934,1.28707883,4310.0,4309.9,0.1978]
[1756773328238,1.52607883,4310.0,4309.9,0.1978]
[1756773328536,0.77557883,4310.0,4309.9,0.709]
[1756773328735,0.57767883,4310.0,4309.9,0.709]
[1756773329336,0.57767883,4310.0,4309.9,4.94101999]
[1756773329935,3.2078,4311.1,4309.9,4.94101999]
[1756773329936,1.78661536,4311.0,4309.9,4.94101999]
[1756773330137,0.7094,4310.5,4309.9,3.2078]
[1756773330345,0.5053,4310.1,4310.0,0.948]
[1756773330643,3.28166253,4311.0,4310.0,0.948]
[1756773330945,0.57807339,4310.9,4310.0,0.948]
[1756773331246,0.3074,4310.7,4310.0,0.948]
[1756773331443,1.08337339,4310.6,4310.5,0.709]
[1756773331637,1.28747339,4310.6,4310.1,0.3126]
[1756773331838,0.5053,4310.2,4310.1,0.5104]
[1756773332037,0.7094,4310.2,4310.1,0.1978]
[1756773332238,1.28747339,4310.2,4310.1,0.1978]
[1756773332432,0.3074,4310.1,4309.9,3.2078]
[1756773332642,1.28747339,4310.0,4309.9,3.4056]
[1756773334239,1.28747339,4310.0,4309.9,3.6042]
[1756773334447,0.57807339,4310.0,4309.9,4.1558]
[1756773334640,1.08337339,4310.0,4309.9,3.8432]
[1756773335148,1.28747339,4310.0,4309.9,3.8432]
[1756773335348,0.77597339,4310.0,4309.9,4.1558]
[1756773335540,0.402,4309.1,4309.0,1.0]
[1756773335738,0.7094,4309.1,4309.0,1.1978]
[1756773336039,0.57807339,4309.1,4309.0,1.709]
[1756773336239,0.57807339,4309.1,4309.0,1.3964]
[1756773336439,0.5053,4309.5,4309.4,0.3964]
[1756773336642,0.7094,4309.5,4309.4,0.3964]
[1756773336840,0.3074,4309.4,4309.0,1.0]
[1756773337043,0.7094,4309.1,4309.0,1.0]
[1756773337243,1.28867449,4309.1,4309.0,1.0]
[1756773339053,1.28867449,4309.1,4309.0,1.1978]
[1756773340044,1.28867449,4309.1,4309.0,1.0]
[1756773340544,1.28869268,4309.1,4309.0,1.0]
[1756773341547,1.28869268,4309.1,4309.0,1.1978]
[1756773341751,1.28869268,4309.1,4309.0,1.6775]
[1756773341951,1.28869268,4309.1,4309.0,1.3902]
[1756773343541,1.28869268,4309.1,4309.0,1.1978]
[1756773343744,1.28869268,4309.1,4309.0,1.0]
[1756773343946,1.47056758,4309.1,4309.0,1.0]
[1756773344452,0.7094,4309.1,4309.0,1.0]
[1756773344950,0.7094,4309.1,4309.0,1.1929]
[1756773346051,0.7094,4309.1,4309.0,1.6726]
[1756773346550,0.7094,4309.1,4309.0,1.3853]
[1756773347461,0.9524,4309.1,4309.0,1.3853]
[1756773348553,0.9524,4309.1,4309.0,1.6726]
[1756773348755,0.9524,4309.1,4309.0,1.3853]
[1756773349156,0.9524,4309.1,4309.0,1.6726]
[1756773349353,0.3019,4309.4,4309.0,1.6726]
[1756773349651,0.243,4309.3,4309.2,0.6726]
[1756773350054,0.7431,4309.3,4309.2,0.6726]
[1756773350249,0.9404,4309.3,4309.2,0.3853]
[1756773352158,0.3019,4310.1,4309.3,0.2873]
[1756773352354,3.62176253,4310.1,4310.0,0.1929]
[1756773352559,4.44366215,4310.1,4310.0,0.1929]
[1756773353859,4.44366215,4310.1,4309.6,0.2873]
[1756773354160,0.5001,4309.7,4309.6,0.6726]
[1756773354360,0.9404,4309.7,4309.6,0.6726]
[1756773355357,0.9404,4309.7,4309.6,0.1929]
[1756773357459,0.9404,4309.7,4309.2,3.4951]
[1756773357759,0.9404,4309.7,4309.0,1.0]
[1756773357760,0.6974,4309.1,4309.0,1.0]
[1756773357961,0.6974,4309.1,4309.0,1.42495]
[1756773358163,0.6974,4309.1,4309.0,1.71225]
[1756773358458,0.6974,4309.1,4309.0,1.90465]
[1756773358858,0.6974,4309.1,4309.0,1.6726]
[1756773359060,3.62176253,4309.1,4309.0,1.0]
[1756773359254,0.3955,4308.0,4307.9,3.4007]
[1756773359461,0.6974,4308.0,4307.9,3.8804]
[1756773360259,0.242,4308.3,4307.9,3.8804]
[1756773360558,0.3019,4308.4,4308.2,0.3853]
[1756773360759,0.6974,4309.2,4309.1,0.4797]
[1756773360964,1.27647045,4309.2,4309.1,0.1929]
[1756773361153,4.18237045,4309.2,4308.3,0.242]
[1756773361463,0.3019,4308.3,4308.1,3.2078]
[1756773361658,0.5001,4308.3,4308.2,0.3853]
[1756773362059,0.6974,4308.3,4308.2,0.3853]
[1756773362260,0.242,4308.5,4308.2,0.6726]
[1756773362460,0.5001,4308.4,4308.3,0.2873]
[1756773362667,0.6974,4308.4,4308.3,0.6726]
[1756773364159,0.6974,4308.4,4308.3,0.3853]
[1756773365768,0.3019,4308.3,4308.1,3.2078]
[1756773366070,3.62176253,4308.2,4308.1,3.2078]
[1756773366259,3.31986253,4308.2,4307.5,3.4498]
[1756773366462,0.1982,4307.6,4307.5,3.8351]
[1756773366765,0.6974,4307.6,4307.5,3.8351]
[1756773367068,0.3955,4307.6,4307.0,3.2078]
[1756773367268,0.6974,4307.2,4307.1,0.4349]
[1756773367468,0.6974,4307.2,4307.1,0.6273]
[1756773367672,0.6974,4307.1,4307.0,3.2078]
[1756773367868,0.6974,4307.1,4306.4,0.242]
[1756773367869,0.4249,4307.0,4306.4,3.4498]
[1756773368067,0.6974,4306.5,4306.4,3.8351]
[1756773370168,0.6974,4306.5,4306.4,0.3853]
[1756773370365,0.6974,4306.0,4305.9,3.5931]
[1756773370566,0.3019,4305.9,4305.4,44.0078]
[1756773370774,0.5001,4305.5,4305.4,44.0078]
[1756773370970,0.5001,4305.5,4305.4,3.5931]
[1756773373881,0.5001,4305.5,4305.4,3.89]
[1756773374478,0.7048,4305.5,4305.4,3.5931]
[1756773374883,0.7048,4305.5,4305.4,3.4007]
[1756773375484,0.7048,4305.5,4305.4,3.5928]
[1756773376088,0.313,4306.0,4305.5,0.2969]
[1756773376296,4.1696,4306.6,4306.5,0.3889]
[1756773376988,3.9286,4306.6,4306.5,0.3889]
[1756773377186,3.7239,4306.6,4306.5,0.3889]
[1756773377491,0.313,4306.8,4306.6,0.2969]
[1756773377691,0.313,4306.8,4306.7,0.6858]
[1756773378390,3.04736253,4307.5,4306.7,0.6858]
[1756773378391,0.313,4307.1,4306.8,0.2969]
[1756773378589,0.6488,4307.2,4307.1,0.1968]
[1756773378895,0.9618,4307.2,4307.1,0.1968]
[1756773380588,0.7208,4307.2,4307.1,0.1968]
[1756773380788,0.7208,4307.2,4307.1,0.3889]
[1756773380996,0.7571,4307.2,4307.1,0.6858]
[1756773381392,0.5161,4307.2,4307.1,0.3889]
[1756773381692,0.313,4307.1,4306.4,3.2078]
[1756773381892,3.2078,4307.3,4305.9,3.5967]
[1756773381893,0.5161,4306.0,4305.9,3.5967]
[1756773382100,0.7208,4306.0,4305.9,3.5967]
[1756773382291,0.7208,4306.0,4305.9,3.4046]
[1756773382490,0.5161,4306.0,4305.9,3.5967]
[1756773382684,0.5161,4306.0,4305.9,3.8936]
[1756773383190,0.7208,4306.0,4305.9,3.2078]
[1756773383391,0.7208,4306.0,4305.9,3.4046]
[1756773383791,3.75986253,4306.0,4305.9,3.2078]
[1756773384797,3.44686253,4306.0,4305.3,3.2078]
[1756773385093,0.7208,4305.4,4305.3,3.4046]
[1756773385999,0.7208,4305.4,4305.3,3.5967]
[1756773387100,0.313,4305.4,4305.3,3.8936]
[1756773388297,3.03906253,4306.0,4305.3,3.8936]
[1756773388298,0.554,4305.9,4305.3,3.8936]
[1756773388901,0.241,4305.9,4305.3,3.8936]
[1756773389202,0.313,4305.8,4305.3,3.8936]
[1756773389403,0.241,4305.9,4305.3,3.5967]
[1756773389802,0.313,4305.8,4305.3,3.8936]
[1756773390203,0.241,4305.9,4305.3,3.5967]
[1756773390399,0.313,4305.8,4305.3,3.8936]
[1756773390800,0.4078,4305.8,4305.7,0.3889]
[1756773391001,0.7208,4305.8,4305.7,0.3889]
[1756773392106,0.7208,4305.8,4305.7,0.1968]
[1756773392305,0.313,4305.7,4305.3,3.2078]
[1756773392599,0.7208,4305.4,4305.3,3.5967]
[1756773392806,0.24,4305.8,4305.3,3.8936]
[1756773393108,0.4431,4305.8,4305.7,0.3889]
[1756773393405,0.2031,4305.8,4305.7,0.3889]
[1756773393608,0.5161,4305.8,4305.7,0.3889]
[1756773393905,0.7208,4305.8,4305.7,0.3889]
[1756773395506,1.29532681,4305.8,4305.7,0.1968]
[1756773395903,0.24,4305.9,4305.8,0.5893]
[1756773396101,0.24,4305.9,4305.8,3.7971]
[1756773396605,0.7561,4306.4,4306.3,0.3889]
[1756773396812,1.53598651,4306.4,4306.3,0.3889]
[1756773396998,1.53598651,4306.4,4306.3,0.1968]
[1756773399008,1.33128651,4306.4,4306.3,0.5893]
[1756773399310,1.09128651,4306.4,4306.3,0.5893]
[1756773399603,0.24,4306.7,4306.3,0.5893]
[1756773399808,1.09038797,4306.6,4306.5,0.3889]
[1756773400709,1.29508797,4306.6,4306.5,0.3889]
[1756773401112,0.5161,4306.6,4306.5,0.5889]
[1756773401409,0.525,4307.1,4306.5,0.5889]
[1756773401610,0.2031,4306.9,4306.8,0.4112]
[1756773401810,1.06230636,4306.9,4306.8,0.4112]
[1756773402610,1.25460636,4306.9,4306.8,0.4112]
[1756773405904,1.25460636,4306.9,4306.2,3.2078]
[1756773405905,0.285,4306.8,4306.2,3.2078]
[1756773406123,0.57420636,4306.9,4306.2,3.619]
[1756773406124,0.6804,4306.3,4306.2,3.619]
[1756773406517,0.4881,4306.3,4306.2,3.619]
[1756773407412,0.6804,4306.3,4306.2,3.619]
[1756773408214,1.88895127,4306.3,4305.4,0.2]
[1756773408412,1.64895127,4305.6,4305.3,3.2078]
[1756773408717,0.6804,4305.4,4305.3,3.2078]
[1756773409410,0.6804,4305.4,4305.3,3.4186]
[1756773409615,0.6804,4305.4,4305.3,3.2078]
[1756773410813,0.6804,4305.4,4304.7,3.4478]
[1756773411018,0.1243,4305.5,4304.7,3.4478]
[1756773411222,0.4881,4304.8,4304.7,3.859]
[1756773411919,0.285,4304.8,4304.7,4.059]
[1756773412216,0.4881,4305.4,4305.3,0.4112]
[1756773412519,0.6804,4305.4,4305.3,3.619]
[1756773413117,0.6804,4305.4,4305.3,3.819]
[1756773413118,0.285,4305.4,4305.3,3.819]
[1756773415521,0.285,4305.9,4305.3,4.059]
[1756773415918,0.285,4305.9,4305.3,3.819]
[1756773416115,3.05075853,4306.0,4305.3,4.059]
[1756773416319,0.285,4305.9,4305.3,4.059]
[1756773417222,0.2031,4305.4,4305.3,3.819]
[1756773417425,0.4881,4305.4,4305.3,4.059]
[1756773417924,0.6804,4305.4,4305.3,3.2078]
[1756773418114,0.285,4305.3,4304.8,3.2078]
[1756773418319,0.6804,4305.3,4305.2,0.4112]
[1756773419922,0.6804,4305.3,4304.8,3.2078]
[1756773420122,0.4773,4305.2,4305.1,0.4112]
[1756773420424,0.285,4305.2,4305.1,0.6112]
[1756773420814,0.6804,4305.2,4305.1,0.4112]
[1756773421018,0.6804,4305.2,4305.1,0.2108]
[1756773421621,0.6804,4305.2,4305.1,0.4112]
[1756773422519,0.4881,4305.2,4305.1,0.4112]
[1756773423325,0.6804,4305.2,4305.1,0.4112]
[1756773423524,0.6804,4305.2,4304.8,3.2078]
[1756773423723,0.285,4305.1,4304.8,3.4478]
[1756773423920,0.3954,4304.9,4304.8,3.6586]
[1756773424123,0.6804,4304.9,4304.8,3.619]
[1756773424324,0.6804,4304.9,4304.8,3.859]
[1756773424920,0.6804,4304.9,4304.8,3.619]
[1756773426020,0.6804,4304.9,4304.8,3.2078]
[1756773428637,0.285,4304.8,4304.3,3.2078]
[1756773428823,0.6804,4304.4,4304.3,3.4186]
[1756773429221,0.6804,4304.4,4304.3,3.2078]
[1756773429527,0.6804,4304.4,4304.1,0.1068736]
[1756773429922,0.3954,4304.2,4304.1,0.1068736]
[1756773430124,1.65019482,4304.2,4304.1,0.1068736]
[1756773430431,0.6804,4303.4,4303.3,3.4186]
[1756773430623,1.65019482,4303.4,4303.3,3.4186]
[1756773431722,1.65019482,4303.4,4303.3,3.2078]
[1756773431923,3.61016284,4303.4,4303.3,0.2056]
[1756773432129,0.7024,4303.3,4303.2,0.2056]
[1756773435524,3.2078,4304.2,4303.3,0.3022]
[1756773435725,0.4092,4304.2,4303.7,3.2078]
[1756773436029,0.204,4303.7,4303.6,0.7065]
[1756773436222,0.7024,4303.7,4303.6,0.4043]
[1756773436623,0.2932,4303.7,4303.6,3.9143]
[1756773436820,0.4972,4303.7,4303.6,0.7065]
[1756773437833,0.7024,4303.7,4303.6,0.4043]
[1756773438530,0.4972,4304.4,4304.3,0.7065]
[1756773438831,0.4972,4304.4,4304.3,3.9143]
[1756773439428,0.4972,4304.4,4304.3,0.7065]
[1756773439633,0.4972,4304.4,4304.3,0.4043]
[1756773439829,0.7024,4304.4,4304.3,0.4043]
[1756773440726,0.7024,4304.4,4303.8,3.2078]
[1756773440926,3.75596284,4304.0,4303.8,3.2078]
[1756773441127,0.7024,4303.9,4303.8,3.2078]
[1756773441625,0.7024,4303.9,4303.8,3.4134]
[1756773441831,0.7024,4303.9,4303.8,3.6121]
[1756773442032,0.2932,4303.9,4303.8,3.9143]
[1756773442625,0.204,4304.1,4304.0,0.4043]
[1756773442829,0.2932,4304.1,4304.0,0.7065]
[1756773443034,0.4972,4304.3,4304.2,0.4043]
[1756773443223,0.4972,4304.3,4304.2,0.7065]
[1756773443535,0.2932,4304.9,4304.7,0.3022]
[1756773443737,0.4092,4304.9,4304.3,3.2078]
[1756773443933,0.52551001,4304.8,4303.9,0.5422]
[1756773444237,3.29356284,4305.0,4303.9,0.5422]
[1756773444238,0.2932,4304.6,4303.9,0.5422]
[1756773444431,0.4092,4304.7,4304.6,0.7065]
[1756773444625,0.6492,4304.7,4304.6,0.7065]
[1756773444829,0.6492,4304.7,4304.6,0.4043]
[1756773445033,0.9424,4304.7,4304.6,0.4043]
[1756773446036,0.7372,4304.7,4304.6,0.7065]
[1756773446235,0.9424,4304.7,4304.6,0.4043]
[1756773446427,0.9424,4304.7,4304.6,0.7065]
[1756773447039,0.7024,4304.7,4304.6,0.7065]
[1756773447534,0.4972,4304.7,4304.6,0.7065]
[1756773447727,0.6492,4305.1,4305.0,0.4043]
[1756773447926,0.6492,4305.1,4304.5,3.2078]
[1756773448131,0.204,4304.6,4304.5,3.6121]
[1756773448332,0.4972,4304.6,4304.5,3.6121]
[1756773448537,0.4972,4304.6,4304.5,3.9143]
[1756773448940,0.4972,4304.6,4304.5,0.2056]
[1756773448941,0.7024,4304.6,4304.5,0.2056]
[1756773449140,0.7024,4304.6,4304.1,0.3022]
[1756773449343,0.2932,4304.5,4304.0,3.4478]
[1756773449640,0.4972,4304.1,4304.0,3.9143]
[1756773451037,0.417,4304.0,4303.5,3.2078]
[1756773451251,0.7024,4303.6,4303.5,3.4134]
[1756773452253,0.7024,4303.6,4303.5,3.2078]
[1756773452852,0.7024,4303.6,4303.5,3.4134]
[1756773456145,0.7024,4303.6,4303.5,3.2078]
[1756773456549,1.27841954,4303.6,4303.5,3.2078]
[1756773456962,1.27841954,4303.6,4303.5,3.4134]
[1756773457456,1.51841954,4303.6,4303.5,3.4134]
[1756773457658,1.51841954,4303.6,4303.5,3.2078]
[1756773458051,0.1238,4303.5,4302.7,3.2078]
[1756773458359,0.2932,4302.7,4301.6,3.2078]
[1756773458553,3.63216284,4302.2,4302.1,0.2056]
[1756773458753,3.87216284,4302.2,4302.1,0.2056]
[1756773460948,3.87216284,4302.2,4301.6,3.2078]
[1756773461149,0.7004,4301.7,4301.6,0.2085]
[1756773461449,0.7004,4301.7,4301.1,3.2078]
[1756773461450,0.4084,4301.2,4301.1,3.4163]
[1756773461652,3.63016284,4301.2,4301.1,3.2078]
[1756773462257,0.7004,4301.2,4301.1,3.2078]
[1756773462465,1.24021536,4302.9,4301.7,0.4035]
[1756773462759,0.4942,4303.2,4302.6,3.2078]
[1756773462960,0.292,4303.1,4302.6,3.2078]
[1756773463157,3.6162,4302.7,4302.1,40.8]
[1756773463360,0.7004,4302.2,4302.1,40.8]
[1756773463656,0.292,4302.1,4301.7,3.2078]
[1756773463850,0.2022,4302.2,4301.7,3.2078]
[1756773464047,0.292,4302.4,4301.7,44.0078]
[1756773464253,0.2,4302.3,4301.7,44.0078]
[1756773464449,0.292,4302.2,4301.7,3.2078]
[1756773464649,0.2022,4302.2,4301.7,3.2078]
[1756773464955,0.292,4302.4,4301.7,3.2078]
[1756773465262,0.292,4302.6,4302.3,3.2078]
[1756773465757,0.24,4302.7,4302.3,3.2078]
[1756773466061,0.292,4302.6,4302.3,3.2078]
[1756773466254,0.2022,4302.6,4302.3,3.2078]
[1756773466561,0.2022,4302.4,4302.3,3.2078]
[1756773466766,0.4942,4302.4,4302.3,3.2078]
[1756773467659,0.292,4303.1,4302.3,3.2078]
[1756773467857,0.4422,4303.0,4302.3,3.2078]
[1756773468458,0.292,4302.9,4302.3,3.2078]
[1756773468657,0.292,4302.7,4302.3,3.2078]
[1756773468960,0.292,4302.9,4302.3,3.2078]
[1756773469156,0.2022,4302.8,4302.3,3.2078]
[1756773469457,0.292,4302.9,4302.3,3.2078]
[1756773469663,0.4942,4302.7,4302.3,3.2078]
[1756773469862,0.2022,4302.7,4302.3,3.2078]
[1756773470057,0.5647,4303.0,4302.3,3.2078]
[1756773470363,0.3625,4303.0,4302.3,3.2078]
[1756773470657,0.2022,4302.9,4302.3,3.2078]
[1756773470868,0.292,4302.9,4302.3,3.2078]
[1756773471162,0.4942,4302.9,4302.3,3.2078]
[1756773471362,0.292,4302.9,4302.3,3.2078]
[1756773472459,0.496,4303.4,4302.3,3.2078]
[1756773472766,0.6982,4303.4,4302.3,3.2078]
[1756773472961,0.292,4303.3,4302.3,3.2078]
[1756773473163,0.4942,4303.3,4302.3,3.2078]
[1756773474561,0.4942,4303.3,4302.3,3.44021]
[1756773474765,0.4942,4303.3,4302.3,3.2078]
[1756773474959,0.292,4303.2,4302.3,3.2078]
[1756773475162,0.4942,4303.2,4302.3,3.2078]
[1756773475357,0.4942,4303.2,4302.4,40.8]
[1756773475562,0.4942,4303.2,4302.5,0.24]
[1756773475773,0.292,4303.2,4302.5,0.24]
[1756773476067,0.4942,4303.2,4302.5,0.24]
[1756773478766,0.292,4303.2,4302.6,2.92976284]
[1756773479069,0.292,4303.4,4302.8,3.2078]
[1756773479270,0.292,4303.4,4302.9,0.24]
[1756773479462,0.292,4303.6,4302.9,0.24]
[1756773479662,0.4942,4303.6,4302.9,0.24]
[1756773480369,0.7004,4303.6,4303.5,3.2078]
[1756773484570,0.7004,4303.6,4302.8,2.70222529]
[1756773484571,0.7004,4302.9,4302.8,2.70222529]
[1756773484868,0.7004,4302.4,4302.3,3.2078]
[1756773485076,0.7004,4301.8,4301.7,3.2078]
[1756773485271,0.292,4301.7,4301.1,3.2078]
[1756773485574,0.7004,4301.2,4301.1,3.6113]
[1756773485762,0.4942,4301.2,4301.1,3.9002]
[1756773487570,0.4942,4301.2,4301.1,3.6113]
[1756773488276,0.292,4303.1,4302.0,0.4035]
[1756773488573,0.4942,4303.6,4303.5,0.4035]
[1756773488774,0.292,4304.1,4303.5,0.6924]
[1756773488971,0.57689399,4304.0,4303.9,0.4035]
[1756773489171,0.292,4304.1,4304.0,0.2889]
[1756773489371,0.292,4304.1,4304.0,0.6924]
[1756773490671,0.4942,4304.1,4304.0,0.4035]
[1756773490871,0.7004,4304.1,4304.0,0.4035]
[1756773493075,0.1254,4304.0,4303.0,3.2078]
[1756773493879,0.3098,4303.8,4303.1,41.0909]
[1756773494068,0.5508,4303.8,4303.1,0.2909]
[1756773494276,0.5508,4303.8,4303.2,0.241]
[1756773497176,0.5036,4303.3,4303.2,0.4478]
[1756773497576,0.5036,4303.3,4303.2,0.6497]
[1756773497779,0.3098,4303.3,4303.2,0.9406]
[1756773498583,0.1254,4304.0,4303.2,0.9406]
[1756773498774,0.3098,4303.9,4303.2,0.9406]
[1756773499782,3.4488,4304.2,4303.5,3.2078]
[1756773499984,0.3098,4304.1,4303.5,3.2078]
[1756773500286,3.4488,4304.2,4303.5,3.2078]
[1756773501287,0.88640485,4304.1,4303.5,3.2078]
[1756773501586,1.28550485,4304.0,4303.9,0.2068]
[1756773502482,0.3098,4304.4,4303.9,0.4087]
[1756773502786,0.5036,4304.4,4304.3,0.6996]
[1756773502984,0.5036,4304.4,4304.3,0.4087]
[1756773502985,1.08023732,4304.4,4304.3,0.4087]
[1756773503584,0.5036,4304.4,4304.3,0.4087]
[1756773504782,0.3098,4304.9,4304.3,0.6996]
[1756773504981,0.77026922,4304.8,4304.7,0.2068]
[1756773505185,0.1938,4304.8,4304.7,0.2068]
[1756773505584,0.7089,4304.8,4304.7,0.2068]
[1756773507488,0.5036,4304.8,4304.7,0.4087]
[1756773507690,0.3098,4305.3,4304.7,0.6996]
[1756773507880,0.5036,4305.3,4305.2,0.4087]
[1756773508290,0.3098,4305.8,4305.2,0.6996]
[1756773508585,1.07944072,4305.7,4305.6,0.2068]
[1756773508780,1.28474072,4305.7,4305.6,0.2068]
[1756773509184,0.5036,4305.7,4305.6,0.6996]
[1756773509585,0.5036,4305.7,4305.6,0.4087]
[1756773509780,0.7089,4305.7,4305.6,0.4087]
[1756773510080,0.7089,4305.7,4305.6,0.2068]
[1756773510387,0.3098,4305.6,4305.1,0.5309]
[1756773510693,0.7089,4305.6,4305.5,0.4087]
[1756773511785,0.7089,4305.6,4305.5,3.6165]
[1756773512792,0.7089,4305.6,4305.1,0.24]
[1756773513092,0.7089,4305.2,4305.1,0.4468]
[1756773513287,0.7089,4305.2,4305.1,0.6487]
[1756773513689,0.7089,4305.2,4305.1,0.9396]
[1756773513895,0.5036,4305.2,4305.1,0.9396]
[1756773514486,0.5036,4305.2,4305.1,0.6487]
[1756773515600,0.5036,4305.2,4305.1,0.9396]
[1756773517093,0.3098,4305.8,4305.1,0.9396]
[1756773517296,0.7089,4305.8,4305.7,0.4087]
[1756773518100,0.5036,4305.8,4305.7,3.86936284]
[1756773518297,0.3098,4306.4,4305.7,3.86936284]
[1756773518496,0.7089,4306.4,4306.3,0.2068]
[1756773518698,0.7089,4306.4,4306.3,0.4087]
[1756773520205,0.5036,4306.4,4306.3,0.6996]
[1756773520502,0.7089,4306.4,4306.3,0.2068]
[1756773523602,0.7089,4306.4,4306.3,0.4087]
[1756773524297,0.7089,4306.4,4306.3,0.2068]
[1756773525407,0.4029,4306.3,4306.2,0.2108]
[1756773525610,0.698,4306.3,4306.2,0.2108]
[1756773527505,0.698,4306.3,4306.2,0.4189]
[1756773527708,0.2951,4306.9,4306.3,0.3103]
[1756773527912,0.698,4307.1,4307.0,3.6267]
[1756773528413,0.698,4307.1,4307.0,3.937]
[1756773528708,0.5025,4307.1,4307.0,3.937]
[1756773529113,0.2951,4307.5,4307.0,3.937]
[1756773529313,0.2951,4307.5,4307.1,0.3103]
[1756773529513,0.698,4307.5,4307.4,0.4189]
[1756773529905,0.698,4307.5,4307.4,0.7292]
[1756773530105,0.2951,4308.0,4307.4,0.4189]
[1756773530310,0.2951,4308.0,4307.5,0.3103]
[1756773530613,0.5255,4308.0,4307.3,2.92976284]
[1756773530810,0.698,4307.5,4307.4,0.6579]
[1756773532213,0.698,4307.5,4307.4,0.9682]
[1756773532415,0.5025,4307.5,4307.4,0.9682]
[1756773533715,0.5025,4308.6,4308.5,0.4189]
[1756773534018,0.698,4308.6,4308.5,3.6267]
[1756773534412,0.698,4308.6,4308.5,3.4186]
[1756773534612,0.4177,4308.5,4308.2,41.039]
[1756773534813,0.698,4308.3,4308.2,41.039]
[1756773535420,0.698,4308.3,4308.2,40.8]
[1756773537021,0.698,4308.3,4308.2,41.1103]
[1756773538417,0.698,4308.3,4308.2,40.8]
[1756773538619,0.2951,4308.2,4308.0,3.4468]
[1756773538821,0.698,4308.1,4308.0,3.2078]
[1756773539125,0.698,4308.1,4308.0,3.4186]
[1756773539424,0.698,4308.1,4308.0,3.6267]
[1756773540618,0.1226,4308.0,4307.7,0.239]
[1756773540819,0.698,4307.6,4307.5,40.8]
[1756773541314,0.698,4307.6,4307.5,41.039]
[1756773542325,0.698,4307.6,4307.5,0.4498]
[1756773542521,0.5025,4307.6,4307.5,0.9682]
[1756773542719,0.2951,4307.6,4307.5,0.9682]
[1756773543220,0.2951,4308.4,4307.6,0.3103]
[1756773543421,1.24872621,4309.3,4308.3,3.937]
[1756773543628,1.07809207,4308.9,4308.8,0.4189]
[1756773543820,0.5025,4308.9,4308.8,0.7292]
[1756773544019,3.2078,4309.4,4308.9,0.3103]
[1756773544020,0.2951,4309.3,4308.9,0.3103]
[1756773544215,1.07801351,4309.2,4309.1,0.7292]
[1756773544419,0.5025,4309.2,4309.1,0.7292]
[1756773545022,0.2074,4308.6,4308.5,3.5181]
[1756773545227,0.698,4308.6,4308.5,3.6576]
[1756773545725,0.698,4308.6,4308.5,3.8657]
[1756773547922,0.5025,4308.6,4308.5,4.176]
[1756773549622,0.698,4308.6,4308.4,0.239]
[1756773549829,0.4029,4308.6,4308.4,3.4468]
[1756773550023,3.75036284,4308.5,4307.9,3.2078]
[1756773550227,0.698,4308.0,4307.9,3.6267]
[1756773550526,0.698,4307.7,4307.6,0.239]
[1756773550729,0.698,4307.7,4307.6,0.9682]
[1756773550920,0.5025,4307.7,4307.6,0.9682]
[1756773551523,3.2078,4308.4,4307.6,0.9682]
[1756773551728,1.28703207,4308.3,4308.2,0.4009]
[1756773552525,0.57643207,4308.3,4308.2,0.7141]
[1756773552732,1.08603207,4308.3,4308.2,0.7141]
[1756773552930,0.57643207,4308.3,4308.2,0.7141]
[1756773553227,0.3016,4309.2,4309.1,0.7141]
[1756773553430,0.87828494,4309.2,4309.1,0.7141]
[1756773553623,1.28728494,4309.2,4309.1,0.4009]
[1756773554020,0.3016,4309.1,4308.7,0.5522]
[1756773554232,1.08628494,4309.0,4308.9,0.2072]
[1756773554533,1.08628494,4309.0,4308.9,0.4009]
[1756773555519,0.29428494,4309.0,4308.9,0.4009]
[1756773555719,0.208,4309.0,4308.9,0.7141]
[1756773556123,0.409,4309.0,4308.6,3.2078]
[1756773556326,0.409,4309.0,4308.6,3.521]
[1756773556727,0.409,4309.0,4308.9,0.5204]
[1756773556930,0.409,4309.0,4308.6,3.2078]
[1756773556931,3.2078,4309.6,4309.0,0.3132]
[1756773557129,3.6168,4309.6,4309.5,0.2072]
[1756773557324,4.86552621,4309.6,4309.5,0.2072]
[1756773557530,5.16712621,4309.6,4308.7,0.239]
[1756773557726,1.24872621,4309.5,4308.8,0.3132]
[1756773557931,0.208,4308.9,4308.8,0.7141]
[1756773560633,0.409,4308.9,4308.8,0.7141]
[1756773560832,0.409,4308.9,4308.1,3.6087]
[1756773560833,0.409,4308.2,4308.1,3.6087]
[1756773561038,0.7106,4308.2,4308.1,3.9219]
[1756773561337,0.7106,4308.2,4308.1,0.5204]
[1756773561637,0.409,4307.9,4307.8,0.7594]
[1756773561840,0.7106,4307.9,4307.8,0.7594]
[1756773562040,0.7106,4307.9,4307.8,0.9531]
[1756773562237,0.7106,4307.9,4307.8,0.7141]
[1756773562533,0.7106,4307.8,4307.7,0.5204]
[1756773562835,0.7106,4307.8,4307.7,0.2072]
[1756773563627,0.7106,4307.8,4307.7,0.7141]
[1756773563831,3.2078,4308.4,4308.3,0.7141]
[1756773564031,0.208,4308.5,4308.4,0.2072]
[1756773564236,0.7106,4308.5,4308.4,0.7141]